bitfinex/quotes_ETHUSD_20260126
["timestamp","ask_amount","ask_price","bid_price","bid_amount"]
[1769422343609,0.002,2894.4,2893.8,2.88810621]
[1769422343780,0.002,2894.4,2893.9,0.724]
[1769422346708,0.002,2894.4,2893.8,2.88810621]
[1769422346882,0.002,2894.4,2894.0,0.724]
[1769422348613,0.002,2894.2,2894.0,0.724]
[1769422353990,0.002,2894.2,2893.3,0.001]
[1769422354206,0.002,2894.2,2893.9,0.724]
[1769422356190,0.002,2894.2,2893.9,3.50861173]
[1769422356392,0.002,2894.6,2894.0,2.78461173]
[1769422358622,0.002,2894.6,2894.1,2.8191588]
[1769422360509,0.002,2894.6,2894.2,3.64840828]
[1769422360731,0.002,2894.6,2894.3,0.36829554]
[1769422361628,0.002,2894.6,2894.1,2.78461173]
[1769422361922,0.002,2894.6,2894.1,0.001]
[1769422362124,0.002,2894.4,2894.2,0.724]
[1769422362331,0.002,2894.9,2894.3,2.78461173]
[1769422367742,0.002,2894.9,2894.3,3.64837699]
[1769422368108,0.002,2894.9,2894.3,2.78461173]
[1769422368309,0.002,2894.9,2894.4,0.35086117]
[1769422368716,0.002,2894.9,2894.4,3.1354729]
[1769422369449,0.0010029,2895.2,2894.5,2.78461173]
[1769422370349,0.0010029,2895.2,2894.7,2.78461173]
[1769422372466,0.0010029,2895.2,2894.8,3.64822925]
[1769422372634,0.0010029,2895.2,2894.9,0.36482293]
[1769422373363,0.002,2895.0,2894.9,0.36482293]
[1769422373735,0.002,2895.0,2894.6,2.78461173]
[1769422374331,0.002,2895.0,2894.6,3.64828491]
[1769422377365,0.002,2895.0,2894.7,0.724]
[1769422380676,0.002,2895.0,2894.7,1.58764245]
[1769422380865,0.002,2895.0,2894.7,0.724]
[1769422381046,0.002,2895.0,2894.7,1.5067094]
[1769422381375,0.001,2895.0,2894.7,4.29132113]
[1769422381705,0.0010029,2895.2,2894.7,4.29132113]
[1769422381976,5.8e-06,2895.2,2894.7,4.29132113]
[1769422382581,5.8e-06,2895.2,2894.7,1.5067094]
[1769422383382,5.8e-06,2895.2,2894.8,0.2370365]
[1769422384486,5.8e-06,2895.2,2894.7,1.5067094]
[1769422385279,5.8e-06,2895.2,2894.9,0.001]
[1769422391360,5.8e-06,2895.2,2894.9,2.77567042]
[1769422391560,5.8e-06,2895.2,2895.0,0.03454231]
[1769422393392,5.8e-06,2895.2,2895.1,0.03454112]
[1769422393587,0.002,2895.5,2895.1,0.36737858]
[1769422395710,0.002,2895.5,2894.9,0.89911554]
[1769422396591,0.002,2895.5,2895.0,0.8635572]
[1769422396780,0.002,2895.5,2895.1,0.001]
[1769422406610,0.002,2895.5,2895.2,0.723]
[1769422407322,6.53033832,2897.4,2895.3,2.71243836]
[1769422407482,2.89385836,2896.5,2895.3,0.03453873]
[1769422407687,2.89385836,2896.5,2895.5,2.71243836]
[1769422408006,2.89385836,2896.5,2895.6,0.723]
[1769422408214,2.91806055,2896.2,2895.7,0.723]
[1769422408413,3.18566442,2896.1,2895.7,0.723]
[1769422409287,0.29180606,2896.1,2895.7,0.723]
[1769422410514,3.18566442,2896.1,2895.7,0.723]
[1769422410885,0.29180606,2896.1,2895.7,0.723]
[1769422413406,2.91806055,2896.0,2895.3,0.724]
[1769422413726,3.23904721,2896.0,2895.3,0.724]
[1769422415318,3.23904721,2896.0,2895.3,0.001]
[1769422416719,2.69265562,2895.7,2895.1,0.001]
[1769422419142,2.69265562,2895.7,2894.6,0.03454708]
[1769422419143,0.02420219,2895.2,2894.6,0.03454708]
[1769422419424,0.02420219,2895.2,2893.7,2.81700573]
[1769422419425,6.87372684,2894.6,2893.7,2.81700573]
[1769422419894,2.69265562,2894.6,2893.7,3.68095015]
[1769422420228,2.69265562,2894.6,2893.7,2.81700573]
[1769422421004,2.69265562,2894.5,2894.3,0.001]
[1769422421206,2.69265562,2894.4,2893.5,2.81700573]
[1769422422022,2.69265562,2894.4,2893.3,0.03556261]
[1769422422227,2.69265562,2894.4,2893.3,0.86506516]
[1769422422429,2.69265562,2894.4,2893.3,2.81800573]
[1769422423203,2.69265562,2894.4,2893.4,2.81700573]
[1769422423406,2.69265562,2894.3,2893.5,0.28180057]
[1769422426821,0.6897929,2894.4,2893.5,3.0988063]
[1769422429718,2.69265562,2894.3,2893.3,0.001]
[1769422429906,2.69265562,2894.2,2893.3,0.001]
[1769422430113,2.69265562,2894.2,2893.3,2.81800573]
[1769422432447,0.6897929,2894.4,2893.4,2.81700573]
[1769422432647,0.03454723,2894.4,2893.6,2.81700573]
[1769422433343,2.72720285,2894.4,2893.6,2.81700573]
[1769422434840,2.72720285,2894.4,2893.5,0.36920649]
[1769422435339,2.72720285,2894.4,2893.5,3.18621222]
[1769422435506,3.42045048,2894.4,2893.5,3.18621222]
[1769422438733,2.69265562,2894.3,2893.5,3.18621222]
[1769422439446,2.69265562,2894.2,2893.5,0.36920649]
[1769422441043,2.69265562,2893.9,2893.3,0.001]
[1769422442632,2.72720285,2893.9,2893.3,0.001]
[1769422445557,2.72720285,2893.9,2893.5,0.001]
[1769422451553,0.03454723,2893.9,2893.5,0.001]
[1769422451736,2.73815799,2894.8,2893.5,2.71163029]
[1769422452074,2.73815799,2895.1,2893.7,2.71063029]
[1769422452359,2.73815799,2895.1,2893.9,2.71063029]
[1769422452930,2.73815799,2895.0,2893.7,0.86392926]
[1769422453165,2.73815799,2894.9,2893.8,0.73015877]
[1769422453366,2.73815799,2894.9,2893.9,2.71063029]
[1769422455863,2.73815799,2894.9,2893.8,2.31807067]
[1769422456064,2.73815799,2894.9,2893.9,3.57451457]
[1769422456264,2.73815799,2895.1,2894.0,2.71063029]
[1769422456436,2.73815799,2895.1,2894.2,2.71063029]
[1769422456866,2.74015799,2895.3,2894.3,2.71063029]
[1769422457063,0.002,2895.3,2894.3,2.71063029]
[1769422457271,0.00100096,2895.3,2894.3,2.71063029]
[1769422457473,0.002,2895.5,2894.6,2.71063029]
[1769422457690,0.00100386,2895.5,2894.7,2.98169332]
[1769422459391,2.82310581,2895.5,2894.7,2.98169332]
[1769422461463,0.00100386,2895.5,2894.7,2.98169332]
[1769422463284,2.82310581,2895.5,2894.7,2.98169332]
[1769422469985,2.82310581,2895.5,2894.9,0.001]
[1769422471261,3.44643988,2895.5,2894.9,0.001]
[1769422481532,3.44643988,2895.5,2895.1,0.001]
[1769422483406,0.62433793,2895.5,2895.1,0.001]
[1769422492231,0.62433793,2895.5,2893.5,0.001]
[1769422492232,0.02420219,2895.3,2893.5,0.001]
[1769422492527,2.81872308,2895.4,2893.3,0.001]
[1769422492528,2.81872308,2894.0,2893.3,0.001]
[1769422494266,2.81872308,2894.3,2893.6,0.02420219]
[1769422494549,4.18608116,2894.7,2893.8,0.02420219]
[1769422494550,2.81872308,2894.5,2893.8,0.02420219]
[1769422495311,2.81872308,2894.7,2893.8,2.89738087]
[1769422496342,3.45413163,2895.1,2894.2,2.89738087]
[1769422496343,2.81872308,2895.1,2894.2,2.89738087]
[1769422497741,2.81872308,2895.1,2894.0,2.89738087]
[1769422497940,2.81872308,2894.9,2894.0,0.3163605]
[1769422498123,2.81872308,2894.9,2894.0,0.02420219]
[1769422499521,2.81872308,2894.8,2894.0,0.02420219]
[1769422500531,2.81872308,2894.8,2893.6,0.3163605]
[1769422500731,2.81872308,2894.8,2893.8,0.02420219]
[1769422501348,2.81872308,2894.8,2893.8,2.89738087]
[1769422501549,2.81872308,2894.8,2893.9,0.28973809]
[1769422502137,2.81872308,2894.8,2894.0,0.02420219]
[1769422502423,7.28667655,2895.0,2894.0,2.89738087]
[1769422502821,2.81872308,2894.9,2894.0,2.89738087]
[1769422503766,0.28187231,2895.0,2894.2,2.89738087]
[1769422503932,2.81872308,2895.3,2894.4,2.89738087]
[1769422504526,2.82072308,2895.3,2894.4,2.89738087]
[1769422504746,2.82072308,2895.3,2894.4,0.02420219]
[1769422504923,2.82708705,2895.2,2894.2,2.99872599]
[1769422505255,3.64937891,2895.2,2894.2,3.30447423]
[1769422505648,2.82708705,2895.1,2894.2,3.30447423]
[1769422508060,0.82229186,2895.2,2894.4,2.99872599]
[1769422508271,0.002,2895.3,2894.4,2.99872599]
[1769422508466,0.002,2895.3,2894.6,2.99872599]
[1769422508972,2.82908705,2895.3,2894.4,2.99872599]
[1769422510985,2.82908705,2895.3,2894.4,0.02420219]
[1769422511184,2.82908705,2895.3,2894.2,1.22829642]
[1769422511185,3.10999575,2895.2,2893.9,1.15360304]
[1769422511389,3.10999575,2895.2,2894.0,0.88804538]
[1769422511682,2.82708705,2895.1,2894.0,0.88804538]
[1769422512785,2.82708705,2895.1,2894.0,0.02420219]
[1769422512986,2.82708705,2895.1,2894.0,0.88805571]
[1769422513156,2.82708705,2895.1,2894.1,0.41523176]
[1769422514961,4.46594569,2895.2,2894.1,0.41523176]
[1769422514962,0.002,2895.3,2894.9,2.99872599]
[1769422515189,0.002,2895.8,2895.0,2.9745238]
[1769422516357,0.001,2895.1,2895.0,2.9745238]
[1769422516583,0.002,2895.8,2895.0,3.35833492]
[1769422525168,2.97570373,2896.1,2895.0,3.35833492]
[1769422528707,0.002,2895.6,2895.0,3.35833492]
[1769422529380,0.002,2895.6,2895.0,4.2218916]
[1769422529581,0.002,2895.6,2895.1,2.82158241]
[1769422530383,0.002,2895.6,2895.1,3.2284785]
[1769422534713,0.002,2895.6,2895.1,0.40689609]
[1769422534916,0.002,2895.6,2894.9,4.53390726]
[1769422535410,0.002,2895.6,2894.9,3.67032009]
[1769422535725,0.002,2895.6,2894.9,4.53390652]
[1769422535938,0.002,2895.6,2895.0,2.94732009]
[1769422540820,3.20857938,2895.6,2894.9,0.723]
[1769422541021,3.52963732,2895.6,2894.5,0.86369017]
[1769422541227,3.52963732,2895.6,2894.7,0.723]
[1769422541918,0.002,2895.6,2895.0,2.94732009]
[1769422542136,0.002,2895.6,2895.1,2.98186121]
[1769422542816,0.002,2895.6,2895.2,2.94732009]
[1769422543016,0.002,2895.6,2895.3,0.03453873]
[1769422544645,0.002,2895.6,2895.2,2.94732009]
[1769422544846,0.002,2895.6,2895.3,0.38108441]
[1769422546451,0.002,2895.6,2895.4,0.03453754]
[1769422552284,0.002,2895.6,2895.3,0.38108441]
[1769422553085,0.002,2895.8,2895.4,2.94732009]
[1769422553258,0.002,2895.8,2895.4,2.98185763]
[1769422553457,0.002,2896.3,2895.5,3.36996093]
[1769422553660,0.002,2896.3,2895.7,2.94732009]
[1769422556184,0.002,2896.3,2895.6,0.723]
[1769422556384,3.20857938,2896.3,2895.6,0.723]
[1769422558071,0.002,2896.3,2895.6,4.53369662]
[1769422558319,0.002,2896.3,2895.7,3.4774878]
[1769422559785,0.002,2896.3,2895.8,3.81063938]
[1769422559991,0.002,2896.3,2895.8,2.94732009]
[1769422561081,0.86492096,2897.2,2895.8,2.94732009]
[1769422561082,3.20657938,2898.6,2897.7,0.1802]
[1769422561287,1.23537099,2898.7,2897.7,0.1802]
[1769422561289,3.20657938,2898.5,2897.7,0.1802]
[1769422561580,3.20657938,2898.5,2896.7,5.25205332]
[1769422561581,3.22044388,2898.2,2897.6,0.723]
[1769422561801,3.20657938,2898.0,2896.6,2.94732009]
[1769422562105,3.20657938,2898.0,2896.6,0.723]
[1769422562106,3.20657938,2897.7,2896.6,0.723]
[1769422564038,3.20857938,2897.5,2896.6,0.723]
[1769422565031,3.20857938,2897.5,2896.6,1.58607971]
[1769422565231,3.20857938,2897.5,2896.6,0.723]
[1769422565429,3.23815989,2897.3,2896.5,0.86309191]
[1769422565635,3.23815989,2897.3,2896.5,0.86310301]
[1769422566214,0.32085794,2897.4,2896.5,0.86310301]
[1769422566492,0.32085794,2897.4,2896.5,3.99999707]
[1769422567190,0.32085794,2897.4,2896.6,3.13689406]
[1769422567398,0.002,2897.5,2896.6,3.13689406]
[1769422568302,3.23815989,2897.4,2896.7,0.723]
[1769422568502,3.23815989,2897.4,2896.3,0.86314836]
[1769422568503,3.23815989,2897.4,2896.3,0.86316671]
[1769422568824,3.23815989,2897.1,2896.4,0.723]
[1769422570096,3.23815989,2897.1,2896.3,0.723]
[1769422570319,3.23815989,2897.1,2896.3,1.54405179]
[1769422570497,3.23815989,2897.1,2896.4,0.723]
[1769422570689,3.23815989,2897.1,2896.1,3.85989406]
[1769422570900,3.23815989,2897.1,2896.0,0.86325743]
[1769422571097,3.23815989,2897.1,2895.9,1.2973469]
[1769422571405,3.23815989,2896.8,2895.7,3.13689406]
[1769422571630,3.23815989,2896.8,2895.6,1.62189765]
[1769422571941,3.23815989,2896.5,2895.6,0.001]
[1769422574321,3.23815989,2896.8,2895.7,3.13689406]
[1769422574918,3.23815989,2896.9,2895.7,3.17142801]
[1769422575126,3.63615776,2896.9,2895.8,3.45413686]
[1769422575735,3.63615776,2896.9,2895.8,3.45513686]
[1769422575941,0.02420219,2897.4,2896.0,3.13689406]
[1769422575942,3.23815989,2897.2,2896.0,3.13689406]
[1769422576247,3.23815989,2897.2,2896.1,3.17142324]
[1769422576946,3.23815989,2897.1,2896.1,3.17142324]
[1769422578046,3.48932982,2897.5,2896.2,3.33495793]
[1769422578346,3.48932982,2897.5,2896.1,0.8977468]
[1769422578347,0.002,2897.5,2896.4,3.33495793]
[1769422578646,0.002,2897.5,2896.5,3.6719064]
[1769422578834,0.002,2897.5,2896.6,0.03452323]
[1769422579216,0.002,2897.5,2896.6,3.36948116]
[1769422579643,0.002,2897.5,2896.6,3.33495793]
[1769422579950,0.002,2897.5,2896.7,0.37064308]
[1769422583946,3.48932982,2897.5,2896.7,0.37064308]
[1769422584147,3.48932982,2897.5,2896.3,0.86315425]
[1769422586152,3.48932982,2897.5,2896.3,4.23263899]
[1769422587232,3.48932982,2897.5,2896.5,0.001]
[1769422588491,3.48932982,2897.5,2896.5,0.03552442]
[1769422588786,3.48932982,2897.5,2896.5,3.37048235]
[1769422588950,3.48932982,2897.5,2896.6,3.67200617]
[1769422589156,3.48932982,2897.5,2896.7,0.03452204]
[1769422589379,3.48932982,2897.5,2896.6,3.67200617]
[1769422589888,3.48932982,2897.5,2896.6,4.53508573]
[1769422590056,3.48932982,2897.5,2896.6,3.67200617]
[1769422590255,0.002,2897.5,2896.8,3.33495793]
[1769422590863,0.002,2897.7,2896.8,3.33495793]
[1769422591191,0.002,2897.7,2897.0,3.33495793]
[1769422591356,0.002,2897.7,2897.1,3.33495793]
[1769422591679,0.002,2897.7,2896.7,0.45706219]
[1769422591680,3.48932982,2897.7,2896.7,0.45706219]
[1769422591889,3.48932982,2897.7,2896.6,0.03452323]
[1769422592106,3.48932982,2897.7,2896.5,0.86409654]
[1769422592107,3.48932982,2897.7,2896.5,4.23357889]
[1769422592276,3.48932982,2897.7,2896.6,3.33495793]
[1769422592586,3.48932982,2897.7,2896.6,4.19803651]
[1769422593090,3.48932982,2897.7,2896.6,3.33495793]
[1769422593256,3.48932982,2897.7,2896.5,0.89860931]
[1769422593257,3.48932982,2897.7,2896.7,0.42335672]
[1769422593466,3.48932982,2897.7,2896.5,0.89860931]
[1769422595794,3.48932982,2897.7,2896.6,3.60880115]
[1769422596004,3.48932982,2897.7,2896.7,3.64332319]
[1769422596192,3.48932982,2897.7,2896.7,0.03452204]
[1769422597008,3.48932982,2897.7,2896.6,0.03452323]
[1769422598607,3.48932982,2897.7,2896.7,0.86305105]
[1769422599321,3.48932982,2897.7,2896.9,0.001]
[1769422601117,3.8382628,2897.7,2896.9,0.001]
[1769422604426,3.48932982,2897.7,2896.9,0.001]
[1769422611044,3.48532066,2897.5,2896.9,0.001]
[1769422615560,3.48532066,2897.5,2896.5,0.001]
[1769422615719,3.48332066,2897.3,2895.8,0.001]
[1769422616325,3.48332066,2897.1,2895.8,0.001]
[1769422616521,3.48332066,2896.9,2895.8,0.001]
[1769422617638,3.48332066,2896.5,2895.8,0.001]
[1769422618354,4.34643744,2896.5,2895.8,0.001]
[1769422618655,3.48332066,2896.3,2895.8,0.001]
[1769422623149,3.48332066,2896.3,2896.0,0.001]
[1769422623446,0.43494212,2896.2,2896.0,0.001]
[1769422626640,0.00295213,2896.4,2896.0,0.001]
[1769422628572,0.03747432,2896.4,2896.0,0.001]
[1769422629347,3.60669341,2896.4,2896.0,0.001]
[1769422629738,4.46984305,2896.4,2896.0,0.001]
[1769422629963,3.60669341,2896.4,2896.0,0.001]
[1769422630161,0.44698249,2896.3,2896.0,0.001]
[1769422630367,0.03452219,2896.2,2896.0,0.001]
[1769422631679,3.60374128,2896.2,2896.0,0.001]
[1769422631842,4.17926952,2896.0,2895.6,0.001]
[1769422632038,4.37859014,2895.9,2895.1,3.68855499]
[1769422632272,3.60374128,2895.9,2895.1,3.68855499]
[1769422633045,3.56921909,2896.1,2895.1,3.68855499]
[1769422633441,3.56921909,2896.1,2895.3,3.68755499]
[1769422634776,3.56921909,2896.1,2895.5,0.001]
[1769422634980,0.44324196,2896.0,2895.5,0.001]
[1769422639196,4.05029977,2896.0,2895.5,0.001]
[1769422639562,4.91357813,2896.0,2895.5,0.001]
[1769422639866,3.57253562,2895.9,2895.1,0.001]
[1769422640186,1.34104251,2896.0,2895.1,0.001]
[1769422640187,3.57253562,2895.7,2895.1,0.001]
[1769422640391,4.35121079,2895.6,2895.1,0.001]
[1769422640692,0.77867517,2895.6,2895.1,0.001]
[1769422641993,3.57253562,2895.4,2894.4,3.44443338]
[1769422643059,4.43597648,2895.4,2894.4,3.44443338]
[1769422643281,0.44359765,2895.3,2894.4,3.44443338]
[1769422644785,4.01613327,2895.3,2894.4,3.44443338]
[1769422646370,4.01613327,2895.3,2894.6,0.001]
[1769422647060,4.05065546,2895.3,2894.6,0.001]
[1769422648166,3.57253562,2895.2,2894.6,0.001]
[1769422648365,0.49141244,2895.1,2894.6,0.001]
[1769422648595,4.06394806,2895.1,2894.6,0.001]
[1769422649970,3.57253562,2895.0,2894.6,0.001]
[1769422652269,0.52593463,2895.1,2894.6,0.001]
[1769422658811,0.52593463,2895.1,2894.8,0.001]
[1769422659108,0.40984703,2895.0,2894.8,0.001]
[1769422661108,0.34017416,2895.0,2894.8,0.001]
[1769422661310,0.002,2895.4,2894.8,3.78459065]
[1769422661503,0.002,2895.6,2894.9,3.78359065]
[1769422662514,0.03452219,2896.1,2895.0,3.78359065]
[1769422663821,4.57612129,2896.3,2895.0,3.78359065]
[1769422663994,4.57612129,2896.3,2894.9,0.86356405]
[1769422663995,1.09290734,2896.2,2895.2,3.78359065]
[1769422664324,4.80583837,2896.2,2895.2,3.78359065]
[1769422664503,1.09290734,2896.2,2895.2,3.78359065]
[1769422664704,3.71293103,2896.1,2895.2,3.78359065]
[1769422664913,0.48058384,2896.0,2895.2,3.78359065]
[1769422667126,4.19351487,2896.0,2895.2,3.78359065]
[1769422668111,4.19351487,2896.0,2894.9,3.78359065]
[1769422668521,4.19351487,2896.0,2894.9,4.64717333]
[1769422669333,4.19351487,2896.0,2894.9,3.78359065]
[1769422669528,4.22205817,2895.9,2895.0,4.24840944]
[1769422670429,0.002,2895.8,2895.0,4.24840944]
[1769422670827,0.002,2895.8,2895.1,3.78359065]
[1769422672638,0.002,2895.8,2895.1,3.81813177]
[1769422673430,0.002,2895.8,2895.1,3.78359065]
[1769422673628,0.002,2895.8,2895.1,4.20843159]
[1769422678446,3.71493103,2895.8,2894.9,3.78359065]
[1769422680044,0.002,2895.8,2894.9,3.78359065]
[1769422681018,0.03652219,2895.8,2894.9,3.78359065]
[1769422681838,3.74945322,2895.8,2894.9,3.78359065]
[1769422682413,4.61277466,2895.8,2894.9,3.78359065]
[1769422682615,0.87924685,2895.7,2894.9,3.78359065]
[1769422682836,0.03452219,2895.6,2894.9,3.78359065]
[1769422683036,3.71293103,2895.4,2894.8,0.001]
[1769422683226,3.71293103,2895.2,2894.8,0.001]
[1769422684112,3.71293103,2894.8,2894.0,3.78359065]
[1769422684312,4.17969388,2894.9,2894.0,3.78359065]
[1769422685433,3.71293103,2895.0,2894.0,3.78359065]
[1769422688746,3.71293103,2895.0,2893.9,3.79794422]
[1769422690527,3.77998109,2894.8,2893.9,3.79794422]
[1769422691054,3.81450328,2894.8,2893.9,3.79794422]
[1769422691262,0.88577962,2894.7,2893.9,3.79794422]
[1769422692231,4.66576071,2894.7,2893.9,3.79794422]
[1769422693161,3.81450328,2894.6,2893.4,3.79794422]
[1769422693363,0.03452219,2894.6,2893.4,4.66195791]
[1769422694029,3.81450328,2894.6,2893.4,3.79794422]
[1769422694229,0.55639327,2894.5,2893.6,3.79794422]
[1769422694832,4.33637436,2894.5,2893.6,3.79794422]
[1769422695141,3.77998109,2894.3,2893.3,0.001]
[1769422695971,3.77998109,2894.3,2893.6,0.001]
[1769422696663,3.81450328,2894.3,2893.6,0.001]
[1769422696867,3.77998109,2894.1,2893.6,0.001]
[1769422697281,4.64381228,2894.1,2893.6,0.001]
[1769422697859,3.77998109,2894.1,2893.6,0.001]
[1769422699737,0.03452219,2894.0,2893.6,0.001]
[1769422700372,3.87001664,2894.0,2893.6,0.001]
[1769422700668,0.38700166,2893.9,2893.6,0.001]
[1769422704797,4.22249611,2893.9,2893.6,0.001]
[1769422704991,0.03452219,2893.8,2893.6,0.001]
[1769422706002,3.87001664,2893.8,2893.3,0.001]
[1769422711472,4.73393383,2893.8,2893.3,0.001]
[1769422711709,3.83549445,2893.6,2893.3,0.001]
[1769422711903,3.87001664,2893.6,2893.3,0.001]
[1769422712235,0.03452219,2893.6,2893.3,0.001]
[1769422715011,0.38700166,2893.9,2893.3,3.89477249]
[1769422715213,5.30367505,2894.2,2893.3,3.89477249]
[1769422717017,4.43987678,2894.2,2893.3,3.89477249]
[1769422717384,0.79986022,2894.2,2893.3,3.89477249]
[1769422717713,5.30367917,2894.2,2893.3,3.89477249]
[1769422717909,5.30367814,2894.2,2893.3,3.89477249]
[1769422718215,1.16536781,2894.1,2893.3,3.89477249]
[1769422721017,1.16536781,2894.1,2893.5,3.89477249]
[1769422721224,0.002,2894.0,2893.5,3.89477249]
[1769422724899,0.002,2894.2,2893.6,3.89377249]
[1769422725102,0.002,2894.8,2893.6,3.89377249]
[1769422725408,0.002,2894.8,2893.8,3.89377249]
[1769422726137,0.002,2894.8,2893.9,3.89377249]
[1769422726354,0.002,2895.0,2894.1,4.18409892]
[1769422726645,0.002,2895.0,2894.2,4.75754052]
[1769422727546,0.002,2895.0,2894.2,4.61777249]
[1769422727836,0.002,2895.0,2894.3,4.35554974]
[1769422729243,0.002,2895.0,2894.3,0.46177725]
[1769422729451,0.002,2895.0,2894.2,0.724]
[1769422729612,0.002,2895.0,2894.2,4.61777249]
[1769422731762,0.002,2895.0,2894.2,3.89377249]
[1769422732123,0.002,2895.0,2894.1,3.89377249]
[1769422732309,0.002,2895.0,2894.3,3.89377249]
[1769422734891,0.002,2895.0,2894.4,0.001]
[1769422735039,0.002,2894.8,2894.4,0.001]
[1769422735422,3.67653875,2894.8,2894.4,0.001]
[1769422739566,3.64001656,2894.6,2893.6,3.89377249]
[1769422739865,0.03452219,2894.5,2893.6,4.28324974]
[1769422740166,3.67453875,2894.5,2893.6,4.28324974]
[1769422740374,3.67453875,2894.5,2893.6,3.89377249]
[1769422741114,0.03452219,2894.5,2893.6,3.89377249]
[1769422741316,0.03652219,2894.8,2893.8,3.89377249]
[1769422741646,0.002,2895.0,2894.1,3.89377249]
[1769422741955,0.002,2895.0,2894.3,3.89377249]
[1769422746255,0.002,2895.0,2894.1,0.89835692]
[1769422746256,0.002,2895.0,2894.1,3.87186318]
[1769422746437,3.74584513,2895.0,2894.1,3.87186318]
[1769422746853,3.74584513,2895.0,2894.4,0.001]
[1769422747058,0.002,2894.8,2894.4,0.001]
[1769422752070,4.15860405,2894.8,2894.4,0.001]
[1769422754546,4.12408186,2894.8,2894.4,0.001]
[1769422756566,0.03452219,2894.7,2894.4,0.001]
[1769422757077,3.77836732,2894.7,2894.4,0.001]
[1769422757784,3.77836732,2894.7,2893.7,3.87186318]
[1769422757979,4.04117198,2894.6,2893.7,3.87186318]
[1769422758886,4.04117198,2894.6,2894.5,0.001]
[1769422759080,4.04117198,2894.6,2893.7,3.87186318]
[1769422761788,3.53894907,2894.4,2893.5,0.001]
[1769422761963,3.53894907,2894.4,2893.6,3.9242384]
[1769422762158,3.94651849,2894.4,2893.6,3.9242384]
[1769422766506,0.40756942,2894.4,2893.6,3.9242384]
[1769422766804,3.53894907,2894.7,2893.6,3.9242384]
[1769422768469,0.03452219,2894.6,2893.6,3.9242384]
[1769422768974,3.57347126,2894.6,2893.6,3.9242384]
[1769422770307,3.57347126,2894.6,2893.8,0.001]
[1769422773417,3.57347126,2894.6,2893.8,3.9252384]
[1769422773572,0.35734713,2894.5,2893.8,3.9252384]
[1769422775526,4.09568542,2894.8,2893.8,3.9252384]
[1769422779708,4.95930408,2894.8,2893.8,3.9252384]
[1769422779908,3.6809265,2894.7,2893.8,3.9252384]
[1769422780120,3.71544869,2894.6,2893.8,0.001]
[1769422783114,3.71544869,2894.6,2894.0,0.001]
[1769422783321,0.37154487,2894.5,2894.0,0.001]
[1769422783524,0.03452219,2894.4,2894.0,0.001]
[1769422785322,3.71544869,2894.4,2894.0,0.001]
[1769422786394,0.03452219,2894.4,2894.0,0.001]
[1769422787324,4.08699356,2894.5,2894.0,0.001]
[1769422787555,0.40889936,2894.4,2894.0,0.001]
[1769422788762,0.002,2894.6,2894.0,3.91466935]
[1769422789040,0.002,2894.6,2894.0,0.001]
[1769422794348,3.6829265,2894.6,2894.0,0.001]
[1769422794523,0.03452219,2894.5,2894.0,0.001]
[1769422795052,0.03452219,2894.5,2894.2,0.001]
[1769422795263,0.37174487,2894.4,2894.2,0.001]
[1769422795430,0.03452219,2894.3,2894.2,0.001]
[1769422796850,0.37174487,2894.4,2894.2,0.001]
[1769422797031,0.03452219,2894.3,2894.2,0.001]
[1769422797232,0.37174487,2894.4,2894.2,0.001]
[1769422798360,0.03452219,2894.3,2894.2,0.001]
[1769422798549,0.37174487,2894.4,2894.2,0.001]
[1769422801361,0.03452219,2894.3,2894.2,0.001]
[1769422801872,0.37174487,2894.4,2894.2,0.001]
[1769422803445,0.002,2894.6,2894.2,0.001]
[1769422803943,0.002,2894.6,2894.2,3.91466935]
[1769422804351,6.35,2894.9,2894.5,3.91366935]
[1769422804553,0.002,2895.0,2894.5,3.91366935]
[1769422814591,0.002,2895.0,2894.2,3.65664455]
[1769422814777,3.81755883,2895.0,2894.2,0.001]
[1769422814976,3.81555883,2894.8,2894.2,0.001]
[1769422815176,0.03452219,2894.7,2894.2,0.001]
[1769422817795,3.6647497,2894.7,2894.2,0.001]
[1769422818691,3.6647497,2894.7,2894.4,0.001]
[1769422819763,4.52840151,2894.7,2894.0,0.001]
[1769422820078,3.45647945,2894.8,2894.0,0.001]
[1769422820079,0.7984881,2894.6,2894.0,3.61905539]
[1769422820275,0.002,2894.8,2894.0,3.61905539]
[1769422823198,3.63222751,2894.8,2894.0,0.001]
[1769422824669,3.6667497,2894.8,2894.0,0.001]
[1769422827409,4.53037175,2894.8,2894.0,0.001]
[1769422827780,3.63022751,2894.7,2894.0,0.001]
[1769422827976,3.63022751,2894.5,2894.0,0.001]
[1769422828305,3.6647497,2894.4,2894.0,0.001]
[1769422829209,0.87136376,2894.6,2894.0,3.61905539]
[1769422829388,3.63022751,2894.7,2894.0,0.001]
[1769422830200,3.63022751,2894.5,2894.2,0.001]
[1769422830909,0.002,2894.6,2894.2,0.001]
[1769422835017,0.002,2894.6,2894.2,3.70851018]
[1769422837591,3.91215742,2894.6,2894.0,0.001]
[1769422837823,4.33831557,2894.5,2894.0,0.001]
[1769422840092,0.39363596,2894.5,2894.0,0.001]
[1769422840298,0.002,2894.6,2894.0,3.70851018]
[1769422840827,0.002,2894.8,2894.1,3.70751018]
[1769422842124,0.002,2894.8,2894.2,0.001]
[1769422842292,0.002,2894.4,2894.2,0.001]
[1769422849549,0.002,2894.4,2894.2,3.70851018]
[1769422849843,0.002,2894.6,2894.3,4.0783612]
[1769422850014,0.002,2894.8,2894.3,4.0783612]
[1769422855235,0.002,2894.8,2894.5,0.001]
[1769422855437,0.002,2894.6,2894.5,0.001]
[1769422861762,0.002,2894.6,2894.0,0.001]
[1769422861763,3.91215742,2894.6,2894.0,0.001]
[1769422861919,3.91015742,2894.4,2894.0,0.001]
[1769422863752,0.39466796,2894.5,2894.0,0.001]
[1769422864319,4.30482538,2894.5,2894.0,0.001]
[1769422867527,4.30482538,2894.5,2894.2,0.001]
[1769422868151,4.33934757,2894.5,2894.2,0.001]
[1769422868348,0.43413476,2894.4,2894.2,0.001]
[1769422869062,3.84517889,2894.4,2894.0,0.001]
[1769422869423,0.89823564,2894.5,2894.0,0.001]